bitfinex-derivatives/quotes_ETHF0:USTF0_20250320
["timestamp","ask_amount","ask_price","bid_price","bid_amount"]
[1742506921342,1.01109,1979.0,1978.9,1.01112]
[1742506921549,9.73486,1979.2,1978.8,4.21895]
[1742506921550,1.01114,1978.9,1978.8,4.21895]
[1742506922441,2.36564,1978.9,1978.8,4.21895]
[1742506923847,1.69753,1979.0,1978.9,1.01114]
[1742506924143,3.03983,1979.0,1978.9,2.32884]
[1742506925042,1.01107,1979.1,1979.0,1.01104]
[1742506925248,1.01107,1979.1,1979.0,2.32874]
[1742506925654,1.3423,1979.2,1979.1,1.01104]
[1742506925850,0.00505524,1979.5,1979.4,1.01089]
[1742506926057,3.2078,1980.1,1979.9,1.01058]
[1742506926252,7.50833,1980.1,1980.0,1.3177]
[1742506926853,7.50733,1980.1,1980.0,1.3177]
[1742506927357,1.01058,1980.0,1979.9,0.00758284]
[1742506927552,2.30198,1980.0,1979.9,1.30258284]
[1742506928162,2.30198,1980.0,1979.9,2.31321284]
[1742506928454,4.80198,1980.0,1979.9,0.00758284]
[1742506928653,3.7914,1980.0,1979.2,3.2078]
[1742506928850,1.01109,1979.1,1979.0,1.01108]
[1742506929161,1.01124,1978.7,1978.6,1.01125]
[1742506929353,1.01124,1978.7,1978.6,4.21905]
[1742506929655,1.01124,1978.7,1978.6,1.01125]
[1742506929856,1.01124,1978.7,1978.6,4.21905]
[1742506930052,1.36978284,1978.8,1978.7,1.01124]
[1742506930258,8.26264,1979.3,1978.7,1.01124]
[1742506930259,2.5271,1979.5,1979.3,1.01089]
[1742506930457,1.01096,1979.4,1979.3,1.01089]
[1742506930658,2.37316,1979.4,1979.3,2.35279]
[1742506936361,1.3622,1979.4,1979.3,2.35279]
[1742506936666,4.21861,1979.6,1979.5,1.01084]
[1742506936862,2.35491,1979.6,1979.5,1.01084]
[1742506937366,2.35491,1979.6,1979.5,4.92454]
[1742506937862,1.71237,1979.7,1979.6,1.01079]
[1742506938063,1.01077,1979.7,1979.6,2.38839]
[1742506938367,1.01073,1979.7,1979.6,2.38839]
[1742506938565,1.01061,1980.0,1979.9,1.01063]
[1742506938765,2.41001,1980.0,1979.9,1.01063]
[1742506939561,1.3994,1980.0,1979.9,1.01063]
[1742506939968,1.65206,1980.1,1980.0,1.01058]
[1742506940369,3.05146,1980.1,1980.0,1.01058]
[1742506940872,2.40996,1980.1,1980.0,2.37318]
[1742506941166,4.21832,1980.2,1980.1,1.01053]
[1742506941468,1.01033,1980.5,1980.4,1.01032]
[1742506941768,1.65453,1980.5,1980.4,1.01032]
[1742506942157,1.0104,1980.4,1980.3,1.01039]
[1742506942857,2.3505,1980.4,1980.3,1.01039]
[1742506945465,1.01043,1980.3,1980.2,5.61224]
[1742506945670,2.36983,1980.3,1980.2,5.61224]
[1742506947974,1.3594,1980.3,1980.2,5.61224]
[1742506949281,2.36983,1980.3,1980.2,5.61224]
[1742506952476,2.36983,1980.3,1980.2,2.40444]
[1742506954878,1.01034,1980.6,1980.5,1.0103]
[1742506955074,2.39674,1980.6,1980.5,1.0103]
[1742506955571,2.39674,1980.6,1980.5,2.3954]
[1742506957576,1.01033,1980.5,1980.4,4.21814]
[1742506957783,2.42063,1980.5,1980.4,4.21814]
[1742506957978,4.7103,1980.5,1980.1,3.2078]
[1742506958183,4.59125,1980.4,1980.1,1.01048]
[1742506958487,1.01053,1980.1,1980.0,2.39122]
[1742506958876,1.01053,1980.1,1980.0,1.3807]
[1742506959080,1.01053,1980.1,1980.0,2.39128]
[1742506959276,1.01053,1980.1,1979.8,1.01825284]
[1742506959277,1.01063,1979.9,1979.8,1.01825284]
[1742506959486,1.01063,1979.9,1979.8,0.00758284]
[1742506959985,2.42093,1979.9,1979.8,0.00758284]
[1742506960882,2.42093,1979.9,1979.8,2.36856284]
[1742506962987,2.42093,1979.9,1979.8,1.35788284]
[1742506963686,2.42093,1979.9,1979.8,2.36856284]
[1742506964699,8.90322,1980.3,1979.8,2.36856284]
[1742506964700,1.01043,1980.4,1980.3,1.01038]
[1742506964991,1.01043,1980.4,1979.8,3.85788284]
[1742506964992,2.33008,1980.5,1980.4,1.01038]
[1742506965786,2.33008,1980.5,1980.4,2.36498]
[1742506967689,2.33008,1980.5,1980.4,5.57278]
[1742506979604,2.33008,1980.5,1980.4,2.36498]
[1742506979806,2.33008,1980.5,1980.4,5.57278]
[1742506984311,2.33008,1980.5,1980.4,2.36498]
[1742506984610,2.33008,1980.5,1980.4,5.57278]
[1742506994718,3.2078,1980.9,1980.5,2.52578]
[1742506995015,1.01004,1981.1,1981.0,1.01007]
[1742506995421,1.01007,1981.0,1980.9,3.07614284]
[1742506995619,2.39257,1981.0,1980.9,0.00758284]
[1742506996015,1.01033,1980.6,1980.4,4.561]
[1742506996218,1.01033,1980.5,1980.4,1.3532]
[1742506996421,2.39283,1980.5,1980.4,1.3532]
[1742506997320,2.39283,1980.5,1980.4,2.36354]
[1742506998125,2.39283,1980.5,1980.4,1.01034]
[1742506998326,1.01038,1980.4,1980.3,4.22578284]
[1742506998527,5.60538,1980.4,1980.3,0.00758284]
[1742506999517,1.01048,1980.2,1980.1,3.2078]
[1742506999717,1.01073,1979.8,1979.7,4.2185]
[1742506999922,1.01073,1979.8,1979.7,1.0107]
[1742507000528,1.01044,1980.4,1980.3,1.01039]
[1742507000823,1.01045,1980.4,1980.3,1.0104]
[1742507001830,2.41295,1980.4,1980.3,2.3762]
[1742507002525,0.00758284,1980.6,1980.5,1.01033]
[1742507002733,0.00758284,1980.6,1980.5,4.21813]
[1742507003032,0.00758284,1980.6,1980.5,7.53713]
[1742507005534,0.00758284,1980.6,1980.5,4.21813]
[1742507005733,0.00758284,1980.6,1980.5,7.53313]
[1742507024659,1.39298284,1980.6,1980.5,7.53313]
[1742507025057,3.8861,1981.1,1980.9,1.01007]
[1742507025358,2.39537,1981.2,1981.1,1.01002]
[1742507026753,1.3854,1981.2,1981.1,1.01002]
[1742507027663,1.3854,1981.2,1981.1,4.21782]
[1742507027854,1.3854,1981.2,1981.1,5.55592]
[1742507030658,0.66158284,1981.3,1981.1,4.5459]
[1742507030962,2.02308284,1981.3,1981.2,2.40347]
[1742507033356,2.02308284,1981.3,1981.2,1.00997]
[1742507033668,2.02308284,1981.3,1981.0,5.05779284]
[1742507033669,1.01002,1981.1,1981.0,0.00758284]
[1742507033853,5.82011,1981.1,1980.6,3.2078]
[1742507034053,1.01022,1980.7,1980.6,4.21806]
[1742507034262,1.01038,1980.5,1980.4,3.2078]
[1742507034457,1.01038,1980.5,1980.4,4.21814]
[1742507034858,2.41078,1980.5,1980.4,4.21814]
[1742507035366,1.4004,1980.5,1980.4,4.21814]
[1742507035569,1.4004,1980.5,1980.4,5.51294]
[1742507037465,2.52532,1980.9,1980.4,5.51294]
[1742507037466,2.52478,1981.4,1980.4,10.2956]
[1742507037768,1.00981,1981.6,1981.2,1.00997]
[1742507037964,1.00981,1981.6,1981.2,4.31797]
[1742507037965,2.40291,1981.6,1981.2,4.31797]
[1742507038365,1.00982,1981.5,1981.2,5.70707]
[1742507038768,1.3931,1981.4,1981.2,6.39497]
[1742507039268,2.40297,1981.4,1981.2,6.39497]
[1742507039468,1.00984,1981.5,1981.2,6.39497]
[1742507039863,1.3514,1981.4,1981.2,6.39497]
[1742507040964,0.6995,1981.7,1981.6,1.00976]
[1742507041165,46.667,1982.7,1982.1,1.00949]
[1742507041166,5.73122,1982.4,1982.1,1.00949]
[1742507041370,1.0095,1982.2,1982.1,1.00949]
[1742507041972,1.00954,1982.1,1982.0,1.00952]
[1742507042171,1.00954,1982.1,1982.0,1.01710284]
[1742507042374,1.00954,1982.1,1982.0,0.00758284]
[1742507042563,1.00954,1982.1,1981.4,1.00981]
[1742507042564,1.00985,1981.5,1981.4,1.00981]
[1742507042874,1.00987,1981.4,1981.3,3.2078]
[1742507043071,2.52489,1981.3,1980.7,2.52556]
[1742507043273,1.01007,1981.1,1981.0,1.01003]
[1742507044468,2.34627,1981.1,1981.0,1.01003]
[1742507045777,3.00847,1981.1,1981.0,1.01003]
[1742507046578,1.01007,1981.0,1980.9,0.00758284]
[1742507046778,2.41157,1981.0,1980.9,0.00758284]
[1742507047077,1.01022,1980.7,1980.6,4.21803]
[1742507047276,1.01022,1980.7,1980.6,1.01023]
[1742507047675,1.01027,1980.6,1980.5,2.35608]
[1742507047869,3.08247,1980.6,1980.5,2.35608]
[1742507048272,3.2078,1981.0,1980.5,7.20058]
[1742507048476,6.5448,1981.9,1981.6,1.00974]
[1742507048780,1.0097,1981.8,1981.7,1.00969]
[1742507048980,2.4091,1981.8,1981.7,1.00969]
[1742507049479,1.00976,1981.6,1981.5,2.37077]
[1742507051083,1.00982,1981.5,1981.4,0.00758284]
[1742507051274,3.05412,1981.5,1981.4,0.00758284]
[1742507051479,6.26192,1981.5,1981.4,0.00758284]
[1742507051980,9.60592,1981.5,1981.4,0.00758284]
[1742507052477,12.10592,1981.5,1981.4,0.00758284]
[1742507053481,9.60592,1981.5,1981.4,0.00758284]
[1742507059979,6.26192,1981.5,1981.4,0.00758284]
[1742507060181,3.2078,1981.5,1981.4,1.01745284]
[1742507060484,1.0097,1981.8,1981.7,1.00971]
[1742507060678,4.22503284,1981.9,1981.8,1.00966]
[1742507064687,9.05038284,1981.9,1981.4,2.31613284]
[1742507066590,7.55662,1981.5,1981.4,0.00758284]
[1742507068288,4.34882,1981.5,1981.4,1.34698284]
[1742507070589,4.34882,1981.5,1981.4,2.04658284]
[1742507070988,4.34882,1981.5,1981.4,3.05645284]
[1742507071193,1.00981,1981.6,1981.5,1.00975]
[1742507071393,1.00981,1981.6,1981.5,2.36705]
[1742507071994,1.00975,1981.7,1981.6,1.0097]
[1742507074097,1.0097,1981.8,1981.7,1.00966]
[1742507074296,1.01723284,1981.9,1981.8,1.00966]
[1742507074498,1.01723284,1981.9,1981.8,1.65336]
[1742507075203,1.00955,1982.1,1982.0,1.0095]
[1742507075703,1.00955,1982.1,1982.0,2.3928]
[1742507081406,1.00966,1981.8,1981.7,3.2078]
[1742507081709,1.00982,1981.5,1981.4,0.00758284]
[1742507082009,4.21762,1981.5,1981.4,0.00758284]
[1742507082401,4.89732,1981.5,1981.4,0.00758284]
[1742507082700,6.26972,1981.5,1981.4,0.00758284]
[1742507082896,1.01012,1980.9,1980.8,4.21794]
[1742507083109,1.01012,1980.9,1980.8,5.58004]
[1742507083303,1.01025,1980.7,1980.6,1.01022]
[1742507083607,1.01025,1980.7,1980.6,2.37232]
[1742507084810,1.01025,1980.7,1980.6,1.3621]
[1742507085194,1.01025,1980.7,1980.6,2.37237]
[1742507085608,1.01025,1980.7,1980.6,1.3621]
[1742507087411,2.29945,1980.7,1980.6,1.3621]
[1742507090509,2.29945,1980.7,1980.5,0.00758284]
[1742507090510,1.01027,1980.6,1980.5,0.00758284]
[1742507090810,2.42557,1980.6,1980.5,0.00758284]
[1742507091010,2.42557,1980.6,1980.5,1.01791284]
[1742507091409,1.01027,1980.6,1980.5,0.00758284]
[1742507091609,0.00758284,1980.8,1980.5,0.00758284]
[1742507091813,1.01009,1981.0,1980.9,1.01008]
[1742507092009,1.3783,1981.3,1980.7,9.07336]
[1742507092209,1.01,1981.2,1981.1,1.00998]
[1742507100422,5.04996,1981.2,1980.9,3.2078]
[1742507100618,3.2078,1981.0,1980.3,6.42206]
[1742507100820,1.01027,1980.6,1980.4,2.31024]
[1742507101022,1.01027,1980.6,1980.4,2.31025]
[1742507101419,2.29017,1980.6,1980.4,1.2999]
[1742507101615,5.49797,1980.6,1980.4,1.2999]
[1742507102012,2.52596,1980.4,1980.1,3.2078]
[1742507102219,3.353,1980.4,1980.0,3.82625]
[1742507102512,6.5638,1980.6,1980.5,1.01033]
[1742507102718,7.57412,1980.6,1980.5,1.01033]
[1742507102913,4.21812,1980.6,1980.5,1.01033]
[1742507103117,1.01025,1980.7,1980.6,1.01027]
[1742507103309,7.575,1980.8,1980.7,1.01022]
[1742507103518,4.218,1980.8,1980.7,1.01022]
[1742507105627,1.01016,1980.9,1980.8,1.01012]
[1742507105817,3.2078,1981.2,1980.8,3.82323]
[1742507106023,1.01001,1981.2,1981.1,1.00997]
[1742507106325,1.01001,1981.2,1980.9,5.05042]
[1742507106326,1.01754284,1981.3,1981.2,1.00997]
[1742507106722,0.00758284,1981.3,1981.2,1.00997]
[1742507107025,0.00758284,1981.3,1981.2,3.11087]
[1742507107226,0.00758284,1981.3,1981.2,3.81757]
[1742507108827,0.00758284,1981.3,1981.2,7.17957]
[1742507109927,0.00758284,1981.3,1981.2,6.47637]
[1742507110522,1.00981,1981.6,1981.5,1.00976]
[1742507111029,1.00981,1981.6,1981.5,2.30316]
[1742507115427,2.32801,1981.6,1981.5,2.30316]
[1742507116632,1.00981,1981.6,1981.5,2.30316]
[1742507121835,1.00972,1981.8,1981.7,1.00966]
[1742507122731,4.21745,1981.9,1981.8,1.00966]
[1742507122937,1.00965,1981.9,1981.8,1.00966]
[1742507123136,2.36135,1981.9,1981.8,1.00966]
[1742507123440,1.00965,1981.9,1981.8,1.00966]
[1742507130839,2.52379,1982.1,1981.8,3.53375]
[1742507131142,1.00956,1982.1,1982.0,1.00951]
[1742507132742,1.00956,1982.1,1982.0,2.40101]
[1742507134845,4.2173,1982.2,1982.1,1.00951]
[1742507137345,3.2078,1982.2,1982.1,1.00951]
[1742507137545,3.2078,1982.2,1982.1,1.69371]
[1742507139742,3.2078,1982.2,1982.1,2.37381]
[1742507140642,4.21726,1982.2,1982.1,2.37381]
[1742507140849,3.2078,1982.2,1982.1,2.37381]
[1742507141543,4.21726,1982.2,1982.1,2.37381]
[1742507142743,3.2078,1982.2,1982.1,2.37381]
[1742507143043,5.2126,1982.4,1982.3,1.00941]
[1742507143242,6.222,1982.4,1982.3,1.00941]
[1742507143847,4.2172,1982.4,1982.3,1.00941]
[1742507150858,1.00971,1981.7,1981.6,0.00758284]
[1742507151256,7.53651,1981.7,1981.6,0.00758284]
[1742507151554,9.0268,1981.7,1981.0,3.2078]
[1742507151757,1.01002,1981.1,1981.0,2.30054]
[1742507152158,8.37329,1981.5,1981.1,1.01002]
[1742507152159,3.324,1981.5,1981.1,1.01002]
[1742507152456,0.6498,1981.8,1981.7,1.00971]
[1742507152657,1.00963,1981.9,1981.8,1.00961]
[1742507152956,1.01721284,1981.9,1981.8,1.00961]
[1742507153153,1.01721284,1981.9,1981.8,2.40081]
[1742507153560,1.00971,1981.8,1981.7,1.00968]
[1742507153759,1.00971,1981.7,1981.6,1.01730284]
[1742507153959,1.00971,1981.7,1981.6,0.00758284]
[1742507154259,0.00758284,1981.9,1981.7,1.00966]
[1742507154558,0.00758284,1981.9,1981.8,1.00966]
[1742507154957,1.01724284,1981.9,1981.8,1.00966]
[1742507155556,2.42684284,1981.9,1981.8,1.00966]
[1742507155759,1.00971,1981.8,1981.7,1.00967]
[1742507155960,3.07361,1981.8,1981.7,1.00967]
[1742507156163,1.00971,1981.7,1981.6,0.00758284]
[1742507156359,5.76031,1981.7,1981.6,0.00758284]
[1742507156551,6.44281,1981.7,1981.6,0.00758284]
[1742507156753,9.65061,1981.7,1981.6,0.00758284]
[1742507157153,6.44281,1981.7,1981.6,0.00758284]
[1742507157963,9.65061,1981.7,1981.6,0.00758284]
[1742507159457,9.65061,1981.7,1981.1,1.68617]
[1742507159458,1.00992,1981.3,1981.1,1.68617]
[1742507159656,1.00997,1981.2,1981.1,1.68617]
[1742507159961,2.32417,1981.2,1981.1,1.00997]
[1742507161859,1.01002,1981.1,1981.0,2.30961284]
[1742507169669,1.01002,1981.1,1981.0,1.29958284]
[1742507169971,1.01002,1981.1,1981.0,2.30965284]
[1742507170173,1.01002,1981.1,1981.0,1.29958284]
[1742507170363,2.36602,1981.1,1981.0,1.29958284]
[1742507170870,2.36602,1981.1,1981.0,2.30965284]
[1742507171671,2.36602,1981.1,1981.0,2.67308284]
[1742507173864,2.36602,1981.1,1981.0,1.38108284]
[1742507176064,2.36602,1981.1,1981.0,0.00758284]
[1742507176262,1.01012,1980.9,1980.8,1.355]
[1742507176673,3.06952,1980.9,1980.8,1.355]
[1742507176968,3.06952,1980.9,1980.4,7.54515]
[1742507176969,1.01033,1980.5,1980.4,7.54515]
[1742507177168,1.01033,1980.5,1980.4,6.5348]
[1742507177373,1.01033,1980.5,1980.4,3.327]
[1742507177872,1.01038,1980.4,1980.3,1.35748284]
[1742507178071,1.01038,1980.4,1980.3,0.70208284]
[1742507178268,2.37298,1980.4,1980.3,2.07888284]
[1742507178964,0.00758284,1980.6,1980.3,4.57888284]
[1742507179170,4.56024,1981.2,1980.8,2.52544]
[1742507179370,1.01005,1981.1,1981.0,1.01002]
[1742507179664,1.01005,1981.1,1981.0,2.32352]
[1742507180679,2.31625,1981.1,1981.0,1.3135]
[1742507180874,2.99835,1981.1,1981.0,1.3135]
[1742507190687,6.20615,1981.1,1981.0,1.3135]
[1742507202194,1.01027,1980.6,1980.5,0.6878]
[1742507202396,1.01027,1980.6,1980.5,1.3734]
[1742507202698,4.21807,1980.6,1980.5,0.6856]
[1742507203096,1.01038,1980.4,1980.3,0.00758284]
[1742507203397,4.21818,1980.4,1980.3,0.00758284]
[1742507204095,1.01058,1980.0,1979.9,0.6856]
[1742507204398,1.01058,1980.0,1979.9,1.3865]
[1742507204793,2.35898,1980.0,1979.9,1.3865]
[1742507207198,2.35898,1980.0,1979.9,2.7105]
[1742507211109,1.01063,1979.9,1979.8,0.00758284]
[1742507211411,3.02533,1979.9,1979.8,0.00758284]
[1742507212407,6.23313,1979.9,1979.8,0.00758284]
[1742507212607,9.54513,1979.9,1979.8,0.00758284]
[1742507212905,1.01079,1979.6,1979.5,1.3467]
[1742507213111,1.01079,1979.6,1979.5,2.642]
[1742507213516,2.41569,1979.6,1979.5,1.2953]
[1742507214313,1.01084,1979.5,1979.4,0.00758284]
[1742507214516,3.11944,1979.5,1979.4,1.30288284]
[1742507215110,1.01104,1979.1,1979.0,7.53285]
[1742507216118,1.01104,1979.1,1979.0,8.85995]
[1742507217415,1.01104,1979.1,1979.0,7.8489]
[1742507217618,1.01109,1979.0,1978.9,1.67522284]
[1742507217813,1.01109,1979.0,1978.9,0.66408284]
[1742507218412,1.01109,1979.0,1978.9,1.67522284]
[1742507218713,1.01109,1979.1,1979.0,1.01104]
[1742507218910,1.01088,1979.5,1979.4,1.01084]
[1742507219414,2.52688,1979.7,1979.5,1.01079]
[1742507219415,1.01083,1979.6,1979.5,1.01079]
[1742507222318,1.01084,1979.5,1979.4,1.3845]
[1742507222521,1.01099,1979.3,1979.2,1.01095]
[1742507222820,1.01104,1979.1,1979.0,1.67895]
[1742507223028,1.01104,1979.1,1979.0,2.39289]
[1742507223512,1.71214,1979.1,1979.0,2.39289]
[1742507224225,1.71214,1979.1,1979.0,1.3818]
[1742507224520,1.71214,1979.1,1979.0,2.39289]
[1742507228530,1.71214,1979.1,1979.0,1.3818]
[1742507228728,1.71214,1979.1,1978.9,0.00758284]
[1742507228729,1.01109,1979.0,1978.9,1.01868284]
[1742507228926,5.73519,1979.3,1979.0,1.01109]
[1742507229133,1.01104,1979.2,1979.1,2.38319]
[1742507231221,1.01062,1980.0,1979.9,1.01058]
[1742507231426,1.4014,1980.0,1979.9,1.01058]
[1742507231936,0.65218284,1980.1,1980.0,1.01058]
[1742507231937,0.00758284,1980.1,1980.0,1.01058]
[1742507232135,0.00758284,1980.1,1980.0,2.29878]
[1742507233234,1.01028,1980.6,1980.5,1.01027]
[1742507233438,2.41168,1980.6,1980.5,1.01027]
[1742507233736,2.41168,1980.6,1980.5,2.29847]
[1742507234035,1.4014,1980.6,1980.5,5.50627]
[1742507234532,2.41167,1980.6,1980.5,2.29847]
[1742507234931,1.01033,1980.5,1980.4,0.00758284]
[1742507235236,1.01048,1980.2,1980.1,3.2078]
[1742507235432,4.37548,1980.2,1980.1,3.2078]
[1742507236036,5.03638,1980.2,1980.1,3.2078]
[1742507238624,1.01053,1980.1,1980.0,2.30876284]
[1742507238828,2.35043,1980.1,1980.0,0.00758284]
[1742507242544,2.35043,1980.1,1980.0,1.01816284]
[1742507243845,2.35043,1980.1,1980.0,0.00758284]
[1742507244149,1.01079,1979.6,1979.5,4.21864]
[1742507244647,1.01084,1979.5,1979.4,1.01086]
[1742507244850,1.01084,1979.5,1979.4,2.33166]
[1742507245150,0.00758284,1979.6,1979.5,1.01084]
[1742507245353,0.00758284,1979.6,1979.5,9.56954]
[1742507248454,1.01065,1979.9,1979.8,1.01068]
[1742507249548,1.01065,1979.9,1979.8,2.29958]
[1742507255261,1.01065,1979.9,1979.8,1.01068]
[1742507257362,1.01068,1979.8,1979.7,4.2185]
[1742507261769,2.39458,1979.8,1979.7,4.2185]
[1742507266171,2.39458,1979.8,1979.7,1.0107]
[1742507272166,3.10318,1979.8,1979.7,1.0107]
[1742507277771,3.10318,1979.8,1979.7,2.3816]
[1742507278373,2.39458,1979.8,1979.7,2.3816]
[1742507278577,5.70658,1979.8,1979.7,2.3816]
[1742507280877,4.32268,1979.8,1979.7,2.3816]
[1742507281369,4.32268,1979.8,1979.7,5.5894]
[1742507282476,3.312,1979.8,1979.7,5.5894]
[1742507282675,2.31037,1979.9,1979.8,1.01068]
[1742507282872,5.61637,1979.9,1979.8,2.41638]
[1742507284271,0.00758284,1980.0,1979.9,1.01063]
[1742507284478,4.31551,1980.2,1980.1,1.01053]
[1742507285374,1.3723,1980.3,1980.2,1.01048]
[1742507285572,0.00758284,1980.4,1980.2,3.53664]
[1742507285874,0.00758284,1980.4,1980.3,1.67583]
[1742507286077,0.00758284,1980.4,1980.3,2.98863]
[1742507286479,0.00758284,1980.4,1980.3,6.19643]
[1742507286681,1.01796284,1980.4,1980.3,6.19643]
[1742507287281,0.00758284,1980.4,1980.3,6.19643]
[1742507287675,0.00758284,1980.4,1980.3,6.89153]
[1742507288075,1.01796284,1980.4,1980.3,6.89153]
[1742507288482,1.01796284,1980.4,1980.3,4.5206]
[1742507288683,2.34676284,1980.4,1980.3,4.5206]
[1742507288983,1.01058,1980.0,1979.9,1.01061]
[1742507289480,1.01058,1980.0,1979.9,2.39381]
[1742507290576,1.01058,1980.0,1979.9,1.3832]
[1742507292585,3.308,1980.0,1979.6,4.21854]
[1742507292785,1.01073,1979.7,1979.6,5.56224]
[1742507293483,2.29793,1979.7,1979.6,5.56224]
[1742507294279,1.01089,1979.4,1979.3,1.01595524]
[1742507294485,4.32889,1979.4,1979.3,0.00505524]
[1742507295185,5.69599,1979.4,1979.3,0.00505524]
[1742507295582,1.01088,1979.5,1979.4,1.01089]
[1742507295779,6.5318,1980.0,1979.8,1.01063]
[1742507295990,4.33458,1980.0,1979.9,1.3632]
[1742507296588,5.70168,1980.0,1979.9,1.3632]
[1742507297893,5.70168,1980.0,1979.9,2.0415]
[1742507298285,5.70168,1980.0,1979.9,3.05213]
[1742507298691,4.33458,1980.0,1979.9,3.05213]
[1742507299388,1.01051,1980.2,1980.0,1.01058]
[1742507299582,1.01051,1980.2,1980.1,1.01046]
[1742507299994,1.01051,1980.2,1980.1,2.34236]
[1742507303796,5.68377,1980.3,1980.2,1.01048]
[1742507304093,4.33347,1980.3,1980.2,2.35448]
[1742507305496,5.65057,1980.3,1980.2,2.35448]
[1742507306790,5.65057,1980.3,1980.0,7.39454]
[1742507306791,1.01053,1980.2,1980.1,1.01049]
[1742507306998,2.32763,1980.2,1980.1,1.01049]
[1742507307695,2.32763,1980.2,1980.1,2.29739]
[1742507315200,2.32763,1980.2,1980.1,2.96649]
[1742507331332,2.32763,1980.2,1980.1,1.01049]
[1742507332025,2.32763,1980.2,1980.1,2.39189]
[1742507352742,1.01063,1979.9,1979.8,1.01066]
[1742507352949,1.01068,1979.8,1979.7,2.305]
[1742507353146,2.34558,1979.8,1979.7,2.305]
[1742507354947,1.01068,1979.8,1979.7,2.305]
[1742507359854,2.33798,1979.8,1979.7,2.305]
[1742507360350,2.33798,1979.8,1979.7,1.2943]
[1742507360546,5.60198,1979.8,1979.7,1.2943]
[1742507361447,1.01073,1979.7,1979.6,3.2078]
[1742507361640,2.99283,1979.7,1979.6,3.2078]
[1742507363554,1.01079,1979.6,1979.5,2.1109]
[1742507363849,2.39569,1979.6,1979.5,0.6931]
[1742507364053,1.01084,1979.5,1979.4,1.01084]
[1742507364255,2.39574,1979.5,1979.4,1.01084]
[1742507365055,1.01089,1979.4,1979.3,2.33406524]
[1742507366348,1.01089,1979.4,1979.3,0.00505524]
[1742507366656,4.28089,1979.4,1979.3,0.00505524]
[1742507367048,5.62529,1979.4,1979.3,0.00505524]
[1742507367451,1.01094,1979.3,1979.2,3.2078]
[1742507367654,1.01099,1979.2,1979.1,0.6645]
[1742507367954,4.28199,1979.2,1979.1,0.6645]
[1742507368155,5.65749,1979.2,1979.1,0.6645]
[1742507369345,1.01104,1979.1,1979.0,3.21538284]
[1742507369545,2.38654,1979.1,1979.0,3.21538284]
[1742507372847,2.38654,1979.1,1979.0,0.00758284]
[1742507379258,3.05624,1979.1,1979.0,0.00758284]
[1742507382159,2.38654,1979.1,1979.0,1.34248284]
[1742507382462,1.01104,1979.1,1979.0,1.34248284]
[1742507382662,1.01104,1979.1,1979.0,2.35357284]
[1742507382663,4.28204,1979.1,1979.0,2.35357284]
[1742507385867,1.01104,1979.1,1979.0,2.35357284]
[1742507392170,2.29964,1979.1,1979.0,2.35357284]
[1742507394376,1.01104,1979.1,1979.0,2.35357284]
[1742507395475,2.42034,1979.1,1979.0,2.35357284]
[1742507400277,2.42034,1979.1,1979.0,3.03697284]
[1742507409281,1.4093,1979.1,1979.0,3.03697284]
[1742507410185,2.42034,1979.1,1979.0,3.03697284]
[1742507422188,0.00758284,1979.3,1979.2,1.01099]
[1742507422385,1.34968284,1979.3,1979.2,4.21879]
[1742507422587,1.34968284,1979.3,1979.2,5.54759]
[1742507426893,0.00758284,1979.3,1979.2,5.54759]
[1742507427101,5.61088,1979.7,1979.6,1.01079]
[1742507427897,2.37188,1979.7,1979.6,1.01079]
[1742507428100,3.70388,1979.7,1979.6,1.01079]
[1742507452811,3.70388,1979.7,1979.6,2.39439]
[1742507454724,3.70388,1979.7,1979.6,3.04619]
[1742507455314,3.02128,1979.7,1979.6,3.04619]
[1742507455919,2.0105,1979.7,1979.6,3.04619]
[1742507456221,1.332,1979.7,1979.6,6.25399]
[1742507457424,2.34273,1979.7,1979.6,6.25399]
[1742507457625,1.332,1979.7,1979.6,6.25399]
[1742507461527,1.332,1979.7,1979.6,3.04619]
[1742507461728,1.332,1979.7,1979.6,6.25399]
[1742507461930,2.34273,1979.7,1979.6,3.04619]
[1742507463329,1.332,1979.7,1979.6,3.04619]
[1742507463530,1.332,1979.7,1979.6,6.25399]
[1742507464233,2.34273,1979.7,1979.6,3.04619]
[1742507466630,1.332,1979.7,1979.6,3.04619]
[1742507466831,1.01830284,1979.8,1979.7,1.01073]
[1742507467027,2.35020284,1979.8,1979.7,2.39413]
[1742507471939,1.33948284,1979.8,1979.7,2.39413]
[1742507472139,0.00758284,1979.8,1979.7,2.39413]
[1742507473338,1.42738284,1979.8,1979.7,2.39413]
[1742507474740,0.00758284,1979.8,1979.7,2.39413]
[1742507475743,1.33948284,1979.8,1979.7,2.39413]
[1742507477546,0.00758284,1979.8,1979.7,2.39413]
[1742507480348,0.00758284,1979.8,1979.7,5.62113]
[1742507481551,1.39178284,1979.8,1979.7,5.62113]
[1742507482644,1.39178284,1979.8,1979.7,14.00913]
[1742507482954,1.39178284,1979.8,1979.7,5.62113]
[1742507492960,1.39178284,1979.8,1979.7,2.39413]
[1742507493254,1.01079,1979.7,1979.6,1.01073]
[1742507493455,4.23779,1979.7,1979.6,1.01073]
[1742507493852,5.64899,1979.7,1979.6,1.01073]
[1742507496456,6.33969,1979.7,1979.6,1.01073]
[1742507501061,6.33969,1979.7,1979.6,2.32353]
[1742507501262,3.11269,1979.7,1979.6,2.32353]
[1742507501558,1.4112,1979.7,1979.6,2.32353]
[1742507501860,2.42193,1979.7,1979.6,2.32353]
[1742507505458,2.42193,1979.7,1979.6,1.01073]
[1742507508265,2.42193,1979.7,1979.6,2.33683]
[1742507509160,2.42193,1979.7,1979.6,1.01073]